Workbook

Sheet Read Me

Sheet Control
G3: Time Series of Output, Supply and Demand | O3: Time Series of Price, Marginal Cost, and | V3: Supply and Demand Schedules
G4: for Good #2 | O4: Marginal Values for Good #2 | V4: for Good #2
A26: SIMLEN: | B26: 300
A27: DT: | B27: 0.01
A28: PER: | B28: =B26/30 -> 10
A29: TIME: | B29: 300.0014954
G47: Time Series of Interest Rates | O47: Time Series of Household Utility | V47: Time Series of Equity Trades
G48: and the Currency Value | O48: and Leisure

Sheet 1 DT
AH4: =-SUM(AH6:AH9) -> -2069.208993 | AI4: =-SUM(AI6:AI9) -> -16310.33911 | AJ4: =-SUM(AJ6:AJ9) -> -53813.25237
F5: < Temporal Parameters, i.e.: Turnover Fractions > | S5: H | T5: 0 | U5: 1 | V5: 2 | W5: L | AF5: U | AG5: 0 | AH5: 1 | AI5: 2 | AJ5: L | AK5: t | AL5: Z | AN5: Z
S6: 0 | U6: 1 | V6: 1 | W6: 0 | X6: 0 | AF6: 0 | AH6: 794.2843664 | AI6: 5778.906278 | AJ6: 8766 | AK6: 0 | AL6: =Y19+AL19 -> -630463.063 | AN6: =Utility!E28 -> -643139.1648 | AO6: 0
R7: =1-T7 -> 4 | S7: 1 | T7: =-SUM(U7:W7) -> -3 | U7: =SIGN(AH7) -> 1 | V7: 1 | W7: 1 | X7: 1 | Y7: =1/(1-T7) -> 0.25 | AE7: Spatial Parameters, | AF7: 1 | AH7: 644.2843664 | AI7: 5546.692237 | AJ7: 29682.74915 | AK7: 1 | AL7: =AH6 -> 794.2843664 | AN7: =Utility!F28 -> 794.2843664 | AO7: 1
E8: i | G8: n | I8: V0 | R8: =1-T8 -> 4 | S8: 2 | T8: =-SUM(U8:W8) -> -3 | U8: 1 | V8: 1 | W8: 1 | X8: 2 | Y8: =1/(1-T8) -> 0.25 | AE8: i.e.: production and | AF8: 2 | AH8: 572.4895161 | AI8: 4693.503722 | AJ8: 25626.02758 | AK8: 2 | AL8: =AI6 -> 5778.906278 | AN8: =Utility!G28 -> 5693.503722 | AO8: 2
E9: =-E60 -> -0.1033641525 | G9: =(1-1/NPV)/Term -> -0.1365232145 | I9: =IState!I13 -> 1 | J9: 0.1 | K9: 0.3333333333 | L9: 1 | N9: < V | R9: =W9-T9 -> 1 | S9: L | T9: =-SUM(U9:V9) -> -2 | U9: 1 | V9: 1 | W9: =SIGN(AJ9) -> -1 | X9: L | Y9: =1/(1-T9) -> 0.3333333333 | AE9: utility tradeoffs > | AF9: L | AH9: 58.15074408 | AI9: 291.2368745 | AJ9: =Zl -> -10261.52436 | AK9: L | AL9: =L49 -> -10261.52436 | AM9: ZL | AN9: =Utility!H31 -> -10219.74286 | AO9: L
E10: =IState!E$13 -> -0.1 | I10: 0 | J10: 1 | K10: 2 | L10: L | R10: h | T10: -N | Y10: 1/(N + 1)
C13: Contra- | E13: k | G13: g | AF13: __
C14: Accounts > | E14: =-E17-SUM(E19:E23) -> -166005.8886 | G14: =-G17-SUM(G19:G23) -> 125686.0091 | I14: =-I17-SUM(I19:I22) -> -4.365574569e-11 | J14: =-J17-SUM(J19:J22) -> -1.489297574e-11 | K14: =-K17-SUM(K19:K22) -> -6.139089237e-12 | L14: =-L17-SUM(L19:L22) -> 1.764419721e-10 | N14: < Markets | R14: =Iota*E14+Nu*G14 -> 0 | T14: =V0*I14 -> -4.365574569e-11 | U14: =J9*J14 -> -1.489297574e-12 | V14: =K9*K14 -> -2.046363079e-12 | W14: =L9*L14 -> 1.764419721e-10 | Y14: < Market Pressure | AE14: =-AE53 -> 4868413.288 | AF14: U | AG14: =SUM(T56:T58) -> -1641633.887 | AH14: =SUM(AH7:AH9) -> 1274.924627 | AI14: =SUM(AI7:AI9) -> 10531.43283 | AJ14: =SUM(AJ7:AJ8) -> 55308.77673
I15: 0 | J15: 1 | K15: 2 | L15: L | T15: 0 | U15: 1 | V15: 2 | W15: L | AG15: 0 | AH15: 1 | AI15: 2 | AJ15: L
E17: =E25 -> 0 | G17: =G25+G33+G41 -> 0 | I17: =I25+I33+I41 -> 0 | J17: =J25+J33+J41 -> 0 | K17: =K25+K33+K41 -> 0 | L17: =L25+L33+L41 -> 0 | R17: =Iota*E17+Nu*G17 -> 0 | T17: =V0*I17 -> 0 | U17: =J$9*J17 -> 0 | V17: =K$9*K17 -> 0 | W17: =L$9*L17 -> 0 | AE17: =AE53+R17 -> -4868413.288 | AG17: =T17+T53 -> 2272096.95 | AH17: =AH4+U17 -> -2069.208993 | AI17: =AI4+V17 -> -16310.33911 | AJ17: =AJ4+W17 -> -53813.25237
I18: 0 | J18: 1 | K18: 2 | L18: L | R18: e | S18: E | T18: 0 | U18: 1 | V18: 2 | W18: L | Y18: Y | AE18: u + e | AF18: m | AG18: 0 | AH18: 1 | AI18: 2 | AJ18: L | AL18: l | AN18: (u + e)/h
D19: 0 | E19: =E27 -> 0 | F19: 0 | G19: =G27+G35+G43 -> 0 | H19: 0 | I19: =I27+I35+I43 -> 104588.8261 | J19: -1005.582292 | K19: -2413.543227 | L19: -8766 | M19: 0 | R19: =Iota*E19+Nu*G19 -> 0 | S19: 0 | T19: =V0*I19 -> 104588.8261 | U19: =J$9*J19 -> -100.5582292 | V19: -804.5144091 | W19: -8766 | X19: 0 | Y19: =T45 -> -104588.8261 | AA19: =GPE!E10 -> 104588.8261 | AE19: =AE55+R19 -> 0 | AF19: 0 | AG19: =AL19 -> -525874.2369 | AH19: =AL20 -> 693.7261372 | AI19: =AL21 -> 4974.391869 | AJ19: =AJ6+W19 -> 0 | AK19: 0 | AL19: =-U49*AL20-V49*AL21-W49*AL22 -> -525874.2369 | AO19: 0
C20: Monetary > | D20: 1 | E20: =E28 -> 81822.70456 | F20: 1 | H20: 1 | I20: -39428.62474 | J20: 494.4177081 | K20: 511.8118621 | L20: 938.6472882 | M20: 1 | N20: < Physical | Q20: Dividends > | R20: =Iota*E20+Nu*G20 -> -8457.534509 | S20: 1 | T20: =V0*I20 -> -39428.62474 | U20: 49.44177081 | V20: 170.603954 | W20: 938.6472882 | X20: 1 | Y20: =AL7-AL20 -> 100.5582292 | Z20: < Production | AE20: =AE56+R20 -> 2564709.721 | AF20: 1 | AG20: =T20+T56 -> -897715.8659 | AH20: =AH7+U20 -> 693.7261372 | AI20: 5717.296191 | AJ20: =AJ7+W20 -> 30621.39644 | AK20: 1 | AL20: =AL7*Y28 -> 693.7261372 | AN20: =AE20/R7 -> 641177.4303 | AO20: 1
C21: Stocks | D21: 2 | E21: =E29 -> 84183.184 | F21: 2 | H21: 2 | I21: -38046.6122 | J21: 310.9398571 | K21: 842.6644401 | L21: 1016.430735 | M21: 2 | N21: Stocks | R21: =Iota*E21+Nu*G21 -> -8701.523466 | S21: 2 | T21: =V0*I21 -> -38046.6122 | U21: 31.09398571 | V21: 280.8881467 | W21: 1016.430735 | X21: 2 | Y21: =AL8-AL21 -> 804.5144091 | AC21: U + E | AD21: > | AE21: =AE57+R21 -> 2231451.853 | AF21: 2 | AG21: =T21+T57 -> -781066.846 | AH21: 603.5835019 | AI21: 4974.391869 | AJ21: =AJ8+W21 -> 26642.45832 | AK21: 2 | AL21: =AL8*Y29 -> 4974.391869 | AN21: =AE21/R8 -> 557862.9633 | AO21: 2
D22: L | F22: L | G22: =G30+G38+G46 -> -125686.0091 | H22: L | I22: -27113.58917 | J22: 200.2247266 | K22: 1059.066925 | L22: 6810.921977 | M22: L | R22: =Iota*E22+Nu*G22 -> 17159.05797 | S22: L | T22: =V0*I22 -> -27113.58917 | U22: 20.02247266 | V22: 353.0223084 | W22: 6810.921977 | X22: L | Y22: =AL9-AL22 -> -6810.921977 | Z22: < | AA22: YL = - Leisure | AE22: =AE58+R22 -> 72251.71366 | AF22: L | AG22: =T22+T58 -> -67440.00088 | AH22: 78.17321674 | AI22: 644.2591829 | AJ22: =AL22 -> -3450.602381 | AK22: L | AL22: =AL9*Y30 -> -3450.602381 | AN22: =AE22/R9 -> 72251.71366 | AO22: L
E23: Investment | G23: Saving | Y23: =Utility!M41 -> -6766
E25: 0 | G25: 0 | I25: 0 | J25: 0 | K25: 0 | L25: 0 | U25: - Y/l
H26: A | I26: 0 | J26: 1 | K26: 2 | L26: L | R26: w | S26: W | T26: 0 | U26: 1 | V26: 2 | W26: L | Y26: l/Z | AE26: b = e/w | AG26: Q = E0/W0 | AL26: z = pl | AN26: q = P0Q
D27: 0 | E27: 0 | F27: 0 | G27: 0 | H27: 0 | I27: 34862.94204 | J27: -335.1940973 | K27: -804.5144091 | L27: -2922 | M27: 0 | S27: 0 | T27: =-Y19/AL19 -> -0.1988856247 | U27: =-Y20/AH19 -> -0.1449537848 | V27: =-Y21/AI19 -> -0.1617312086 | X27: 0 | Y27: =AL19/AL6 -> 0.8341079244 | AF27: 0 | AK27: 0 | AO27: 0
D28: 1 | E28: 81822.70456 | F28: 1 | H28: 1 | I28: -13142.87491 | J28: 164.8059027 | K28: 170.603954 | L28: 312.8824294 | M28: 1 | P28: E | Q28: > | R28: =U27-T28 -> -0.01319063041 | S28: 1 | T28: =-SUM(U28:W28) -> -0.1317631544 | U28: =U20/AH20 -> 0.07126986884 | V28: 0.02983997126 | W28: 0.03065331426 | X28: 1 | Y28: =(1-U28)*(1-V28)*(1-W28) -> 0.8733976981 | AE28: =R20/R28 -> 641177.4303 | AF28: 1 | AG28: =T20/T28 -> 299238.622 | AK28: 1 | AL28: =AL44*AL20 -> 641177.4303 | AN28: =P0*AG28 -> 641177.4303 | AO28: 1
D29: 2 | E29: 84183.184 | F29: 2 | H29: 2 | I29: -12682.20407 | J29: 103.646619 | K29: 280.8881467 | L29: 338.8102449 | M29: 2 | P29: U + E | R29: =V27-T29 -> -0.01559795871 | S29: 2 | T29: =-SUM(U29:W29) -> -0.1461332499 | U29: 0.05151563224 | V29: 0.05646683134 | W29: 0.03815078634 | X29: 2 | Y29: =(1-U29)*(1-V29)*(1-W29) -> 0.8607843127 | AE29: =R21/R29 -> 557862.9633 | AF29: 2 | AG29: =T21/T29 -> 260355.6153 | AK29: 2 | AL29: =AL45*AL21 -> 557862.9633 | AN29: =P0*AG29 -> 557862.9633 | AO29: 2
D30: L | F30: L | G30: -41895.33636 | H30: L | I30: -9037.863058 | J30: 66.74157555 | K30: 353.0223084 | L30: 2270.307326 | M30: L | R30: =W30-T30 -> 0.2374899792 | S30: L | T30: =-SUM(U30:V30) -> -0.8040803328 | U30: =U22/AH22 -> 0.2561295735 | V30: =V22/AI22 -> 0.5479507593 | W30: =(AJ6+Y22)/AJ22 -> -0.5665903536 | X30: L | Y30: =(1-U30)*(1-V30) -> 0.3362660615 | AE30: =R22/R30 -> 72251.71366 | AF30: L | AG30: =T22/T30 -> 33720.00044 | AK30: L | AL30: =AL46*AL22 -> 72251.71366 | AN30: =P0*AG30 -> 72251.71366 | AO30: L
W31: (t+Y) /l
I33: 0 | J33: 0 | K33: 0 | L33: 0 | R33: =R35-T33 -> -2272096.95 | T33: =-SUM(U33:W33) -> 2272096.95 | U33: =-SUM(U35:U38) -> -892552.8597 | V33: =-SUM(V35:V38) -> -853669.8531 | W33: =-SUM(W35:W38) -> -525874.2369 | AE33: =AE35-AG33 -> -4868413.288 | AG33: =-SUM(AH33:AJ33) -> 4868413.288 | AH33: =-SUM(AH35:AH38) -> -1912469.538 | AI33: =-SUM(AI35:AI38) -> -1829155.071 | AJ33: =-SUM(AJ35:AJ38) -> -1126788.68
H34: B | I34: 0 | J34: 1 | K34: 2 | L34: L | R34: hQ | S34: HQ | T34: 0 | U34: 1 | V34: 2 | W34: L | AE34: hb | AF34: Hb | AG34: 0 | AH34: 1 | AI34: 2 | AJ34: L | AN34: (PU + s)/N
F35: 0 | G35: 0 | H35: 0 | I35: 34862.94204 | J35: -335.1940973 | K35: -804.5144091 | L35: -2922 | M35: 0 | R35: =T35-T35 -> 0 | S35: 0 | T35: =-T33-SUM(T36:T38) -> -525874.2369 | U35: =U6*AG28 -> 299238.622 | V35: =V6*AG29 -> 260355.6153 | W35: =W6*AG30 -> 0 | X35: 0 | AE35: =AG35-AG35 -> 0 | AF35: 0 | AG35: =-AG33-SUM(AG36:AG38) -> -1126788.68 | AH35: =U6*AE28 -> 641177.4303 | AI35: =V6*AE29 -> 557862.9633 | AJ35: =W6*AE30 -> 0 | AK35: 0 | AO35: 0
F36: 1 | H36: 1 | I36: -13142.87491 | J36: 164.8059027 | K36: 170.603954 | L36: 312.8824294 | M36: 1 | R36: =U35-T36 -> 1196954.488 | S36: 1 | T36: =-SUM(U36:W36) -> -897715.8659 | U36: =U7*$AG28 -> 299238.622 | V36: 299238.622 | W36: 299238.622 | X36: 1 | AE36: =R7*$AE28 -> 2564709.721 | AF36: 1 | AG36: =T7*$AE28 -> -1923532.291 | AH36: 641177.4303 | AI36: 641177.4303 | AJ36: 641177.4303 | AK36: 1 | AN36: =(-AG56-P0*T20)/T7 -> -641177.4303 | AO36: 1
C37: System State | F37: 2 | H37: 2 | I37: -12682.20407 | J37: 103.646619 | K37: 280.8881467 | L37: 338.8102449 | M37: 2 | R37: =V35-T37 -> 1041422.461 | S37: 2 | T37: =-SUM(U37:W37) -> -781066.846 | U37: 260355.6153 | V37: 260355.6153 | W37: 260355.6153 | X37: 2 | AE37: =R8*$AE29 -> 2231451.853 | AF37: 2 | AG37: -1673588.89 | AH37: 557862.9633 | AI37: 557862.9633 | AJ37: 557862.9633 | AK37: 2 | AN37: =(-AG57-P0*T21)/T8 -> -557862.9633 | AO37: 2
C38: at time = t > | F38: L | G38: -41895.33636 | H38: L | I38: -9037.863058 | J38: 66.74157555 | K38: 353.0223084 | L38: 2270.307326 | M38: L | R38: =W35+W38-T38 -> 33720.00044 | S38: L | T38: =-SUM(U38:V38) -> -67440.00088 | U38: 33720.00044 | V38: 33720.00044 | W38: -33720.00044 | X38: L | AE38: =R9*$AE30 -> 72251.71366 | AF38: L | AG38: -144503.4273 | AH38: 72251.71366 | AI38: 72251.71366 | AJ38: -72251.71366 | AK38: L | AN38: =(-AG58-P0*T22)/T9 -> -72251.71366 | AO38: L
S40: __ | AD40: Intersection of
I41: 0 | J41: 0 | K41: 0 | L41: 0 | R41: =SUM(R36:R38) -> 2272096.95 | S41: Q | T41: =SUM(T36:T38) -> -1746222.713 | U41: =SUM(U36:U38) -> 593314.2377 | V41: =SUM(V36:V38) -> 593314.2377 | W41: =SUM(W36:W37) -> 559594.2373 | AD41: S/D Schedules > | AE41: =AE33/AE17 -> 1 | AG41: =AG33/AG17 -> 2.142696107 | AH41: =AH33/AH17 -> 924.2515106 | AI41: =AI33/AI17 -> 112.1469675 | AJ41: =AJ33/AJ17 -> 20.93886971 | AO41: 1/(N+1)
H42: C | I42: 0 | J42: 1 | K42: 2 | L42: L | T42: 0 | U42: 1 | V42: 2 | W42: L | AF42: c Hb/m | AG42: 0 | AH42: 1 | AI42: 2 | AJ42: L | AL42: p | AN42: (pZPU)
F43: 0 | G43: 0 | H43: 0 | I43: 34862.94204 | J43: -335.1940973 | K43: -804.5144091 | L43: -2922 | M43: 0 | AD43: Marginal Costs of Production > | AE43: 1 | AF43: 0 | AG43: =AG35/AG19 -> 2.142696107 | AH43: 924.2515106 | AI43: 112.1469675 | AK43: 0 | AO43: 0
F44: 1 | H44: 1 | I44: -13142.87491 | J44: 164.8059027 | K44: 170.603954 | L44: 312.8824294 | M44: 1 | R44: 0 | T44: =-GPE!E10 -> -104588.8261 | U44: =-GPE!F10 -> 100 | V44: =-GPE!G10 -> 750 | W44: =-GPE!H10 -> 8766 | AE44: =AE36/AE20 -> 1 | AF44: 1 | AG44: 2.142696107 | AH44: 924.2515106 | AI44: 112.1469675 | AJ44: =AJ36/AJ20 -> 20.93886971 | AK44: 1 | AL44: =AH49 -> 924.2515106 | AN44: =(AL44*AL7*AL56)^Y7 -> 641177.4303 | AO44: 1
F45: 2 | H45: 2 | I45: -12682.20407 | J45: 103.646619 | K45: 280.8881467 | L45: 338.8102449 | M45: 2 | R45: =-R83 -> 0 | S45: Yt | T45: =-T19 -> -104588.8261 | U45: =Y20 -> 100.5582292 | V45: =Y21 -> 804.5144091 | W45: =AJ6 -> 8766 | Y45: < Output | AD45: Values of > | AE45: =AE37/AE21 -> 1 | AF45: 2 | AG45: 2.142696107 | AH45: 924.2515106 | AI45: 112.1469675 | AJ45: =AJ37/AJ21 -> 20.93886971 | AK45: 2 | AL45: =AI49 -> 112.1469675 | AN45: =(AL45*AL8*AL57)^Y8 -> 557862.9633 | AO45: 2
F46: L | G46: -41895.33636 | H46: L | I46: -9037.863058 | J46: 66.74157555 | K46: 353.0223084 | L46: 2270.307326 | M46: L | T46: 0 | U46: 1 | V46: 2 | W46: L | AD46: Marginal Product | AE46: =AE38/AE22 -> 1 | AF46: L | AG46: 2.142696107 | AH46: 924.2515106 | AI46: 112.1469675 | AJ46: =AJ38/AJ22 -> 20.93886971 | AK46: L | AL46: =-AJ49 -> -20.93886971 | AN46: =(AL46*AL9*AL58)^Y9 -> 72251.71366 | AO46: L
R48: =AE48/$AG48 -> 0.5 | T48: =AG48/$AG48 -> 1 | U48: =AH48/$AG48 -> 441.9334589 | V48: =AI48/$AG48 -> 53.8606403 | W48: =AJ48/$AG48 -> 10 | AE48: 1 | AG48: =GPE!E18 -> 2 | AH48: =GPE!F18 -> 883.8669178 | AI48: =GPE!G18 -> 107.7212806 | AJ48: =GPE!H18 -> 20
G49: =3*G41/Term -> 0 | L49: -10261.52436 | Q49: Currency > | R49: =R33/AE33 -> 0.4667017394 | S49: Y | T49: =T41/(AG14+T73) -> 1 | U49: =U41/(AH14+U73) -> 431.3497876 | V49: =V41/(AI14+V73) -> 52.33918481 | W49: =W41/(AJ14+W73) -> 9.772206913 | Y49: < Values | AD49: Prices > | AE49: =R49/$R49 -> 1 | AF49: P | AG49: =AG33/(T53+T17) -> 2.142696107 | AH49: =U49/$R49 -> 924.2515106 | AI49: =V49/$R49 -> 112.1469675 | AJ49: =W49/$R49 -> 20.93886971
P50: Value | R50: G/$ | T50: 0 | U50: 1 | V50: 2 | W50: L | Y50: G/unit | AC50: $/unit | AE50: $/$ | AG50: 0 | AH50: 1 | AI50: 2 | AJ50: L
F51: 0 | G51: =3*G43/Term -> 0 | H51: 0
F52: 1 | H52: 1
E53: Maturing | F53: 2 | H53: 2 | R53: =R55-T53 -> -2272096.95 | T53: =-SUM(U53:W53) -> 2272096.95 | U53: =U$49*AH4 -> -892552.8597 | V53: =V$49*AI4 -> -853669.8531 | W53: =W$49*AJ4 -> -525874.2369 | AE53: =AE55-AG53 -> -4868413.288 | AG53: =-SUM(AH53:AJ53) -> 4868413.288 | AH53: =AH$49*AH4 -> -1912469.538 | AI53: =AI$49*AI4 -> -1829155.071 | AJ53: =AJ$49*AJ4 -> -1126788.68
E54: Principal > | F54: L | G54: =3*G46/Term -> -19832.60883 | H54: L | R54: ¡ | S54: YU | T54: 0 | U54: 1 | V54: 2 | W54: L | AE54: u | AF54: PU | AG54: 0 | AH54: 1 | AI54: 2 | AJ54: L | AL54: PU
R55: =T55-T55 -> 0 | S55: 0 | T55: =-T53-SUM(T56:T58) -> -630463.063 | U55: =U$49*AH6 -> 342614.3928 | V55: 302463.2437 | W55: 85663.1658 | X55: 0 | AE55: =AG55-AG55 -> 0 | AF55: 0 | AG55: =-AG53-SUM(AG56:AG58) -> -1350890.75 | AH55: =AH$49*AH6 -> 734118.5255 | AI55: 648086.8146 | AJ55: 183550.1318 | AK55: 0
R56: =U55-T56 -> 1200901.634 | S56: 1 | T56: =-SUM(U56:W56) -> -858287.2411 | U56: 277911.9246 | V56: 290309.3501 | W56: 290065.9664 | X56: 1 | Y56: Interaction | AD56: Interaction | AE56: =AH55-AG56 -> 2573167.256 | AF56: 1 | AG56: =-SUM(AH56:AJ56) -> -1839048.73 | AH56: 595480.7989 | AI56: 622044.7142 | AJ56: 621523.217 | AK56: 1 | AL56: =AH56*AI56*AJ56 -> 2.302219471e+17
R57: =V55-T57 -> 1045483.477 | S57: 2 | T57: =-SUM(U57:W57) -> -743020.2338 | U57: 246943.2312 | V57: 245654.1587 | W57: 250422.8439 | X57: 2 | Y57: < of Utility | AD57: of Utility > | AE57: =AI55-AG57 -> 2240153.377 | AF57: 2 | AG57: =-SUM(AH57:AJ57) -> -1592066.562 | AH57: 529124.3001 | AI57: 526362.2095 | AJ57: 536580.0526 | AK57: 2 | AL57: =AH57*AI57*AJ57 -> 1.494434662e+17
R58: =W55+W58-T58 -> 25711.83823 | S58: L | T58: =-SUM(U58:V58) -> -40326.4117 | U58: 25083.31111 | V58: 15243.1006 | W58: -100277.7393 | X58: L | Y58: with Values | AD58: with Prices | AE58: =AJ55+AJ58-AG58 -> 55092.65568 | AF58: L | AG58: =-SUM(AH58:AI58) -> -86407.24535 | AH58: 53745.91305 | AI58: 32661.3323 | AJ58: -214864.7215 | AK58: L | AL58: =AH58*AI58 -> 1755413126
E59: - i | G59: Domestic
E60: =-V0-I63/I60 -> 0.1033641525 | F60: < | G60: Interest | I60: =-I20-I21 -> 77475.23694 | J60: < Asset Valuations, a | AG60: - PU
E61: =-IState!E$13 -> 0.1 | G61: Rate | I61: 0
R62: =AE62/AE$49-AE53 -> -1.490116119e-08 | T62: =AG62/AG$49-T53 -> 5.587935448e-09 | U62: =AH62/AH$49-AH4 -> -4.092726158e-12 | V62: =AI62/AI$49-AI4 -> -4.547473509e-11 | W62: =AJ62/AJ$49-AJ4 -> -2.83762347e-10 | AE62: =-AG62 -> -4868413.288 | AG62: =-SUM(AH62:AJ62) -> 4868413.288 | AH62: =-SUM(AH64:AH67) -> -1912469.538 | AI62: =-SUM(AI64:AI67) -> -1829155.071 | AJ62: =-SUM(AJ64:AJ67) -> -1126788.68
E63: Supply Valuations, YS | H63: > | I63: =-SUM(J63:K63) -> -85483.39914 | J63: =U49*U73 -> 43375.7708 | K63: =V49*V73 -> 42107.62834 | R63: -f | S63: Q | T63: 0 | U63: 1 | V63: 2 | W63: L | AE63: hz | AF63: Hz | AG63: 0 | AH63: 1 | AI63: 2 | AJ63: L
I64: 0 | J64: 1 | K64: 2 | R64: =AE64/AE$49-AE55 -> 0 | S64: 0 | T64: =AG64/AG$49-T55 -> 104588.8261 | U64: =AH64/AH$49-AH6 -> -100.5582292 | V64: -804.5144091 | W64: -8766 | X64: 0 | AE64: =AG64-AG64 -> 0 | AF64: 0 | AG64: =-AG62-SUM(AG65:AG67) -> -1126788.68 | AH64: =U6*AL28 -> 641177.4303 | AI64: =V6*AL29 -> 557862.9633 | AJ64: =W6*AL30 -> 0 | AK64: 0
R65: =AE65/AE$49-AE56 -> -8457.534509 | S65: 1 | T65: =AG65/AG$49-T56 -> -39428.62474 | U65: 49.44177081 | V65: 170.603954 | W65: 938.6472882 | X65: 1 | Y65: Optimal | AE65: =R7*AL28 -> 2564709.721 | AF65: 1 | AG65: =T7*AL28 -> -1923532.291 | AH65: =U7*$AL28 -> 641177.4303 | AI65: 641177.4303 | AJ65: 641177.4303 | AK65: 1
I66: NPV | J66: 1 | R66: =AE66/AE$49-AE57 -> -8701.523466 | S66: 2 | T66: =AG66/AG$49-T57 -> -38046.6122 | U66: 31.09398571 | V66: 280.8881467 | W66: 1016.430735 | X66: 2 | Y66: < Rates of | AE66: =R8*AL29 -> 2231451.853 | AF66: 2 | AG66: =T8*AL29 -> -1673588.89 | AH66: 557862.9633 | AI66: 557862.9633 | AJ66: 557862.9633 | AK66: 2
E67: Investment | G67: =LN(1-Iota)*(1-Iota)^Term+Iota*Kappa/Gamma -> 0.3199908647 | I67: =1/(1+Iota*Term*Kappa/Gamma) -> 0.5361372045 | J67: 1+iTk/g | R67: =AE67/AE$49-AE58 -> 17159.05797 | S67: L | T67: =AG67/AG$49-T58 -> -27113.58917 | U67: 20.02247266 | V67: 353.0223084 | W67: 6810.921977 | X67: L | Y67: Change | AE67: =R9*AL30 -> 72251.71366 | AF67: L | AG67: =T9*AL30 -> -144503.4273 | AH67: 72251.71366 | AI67: 72251.71366 | AJ67: -72251.71366 | AK67: L
E68: Term | I68: =IState!E9 -> 0.5131581182
E69: Calculation | G69: =Term-(1/I69-1/I67)/G67 -> 6.337341203 | I69: =(V0-Iota/V0)^(-Term) -> 0.5361372045 | J69: 1 | Y69: Domestic
I70: NPV | J70: (1 - i)T | R70: =SUM(R65:R67) -> 1.532316674e-08 | S70: D | T70: =SUM(T65:T67) -> -104588.8261 | U70: =SUM(U65:U67) -> 100.5582292 | V70: =SUM(V65:V67) -> 804.5144091 | W70: =SUM(W65:W66) -> 1955.078023 | Y70: < Demand
T71: 0 | U71: 1 | V71: 2 | W71: L
Y72: Domestic
R73: =R45+R14 -> 0 | S73: S | T73: =-GPE!E10 -> -104588.8261 | U73: =U45+U14 -> 100.5582292 | V73: =V45+V14 -> 804.5144091 | W73: =W45+Y22+W14 -> 1955.078023 | Y73: < Supply | AE73: 0 | AG73: =-SUM(AH73:AJ73) -> 0
T74: 0 | U74: 1 | V74: 2 | W74: L | AF74: FI | AG74: 0 | AH74: 1 | AI74: 2 | AJ74: L
E75: Domestic | G75: T | AE75: =AG75-AG75 -> 0 | AF75: 0 | AG75: =-SUM(AH75:AJ75) -> 0 | AH75: 0 | AI75: 0 | AJ75: 0 | AK75: 0
E76: Investment | F76: > | G76: 6.337341203 | Y76: Demand | AD76: Equity | AE76: =AH75-AG76 -> -1.209699209e-09 | AF76: 1 | AG76: =-SUM(AH76:AJ76) -> 1.209699209e-09 | AH76: 0 | AI76: =(AE45-AE44)*(V0*-Iota)*(E20+E21) -> -1.209699209e-09 | AK76: 1
E77: Term | G77: =ITerm -> 7 | R77: =IF(R70>R73,R73/R70,1) -> 0 | S77: F | T77: =T73/T70 -> 1 | U77: =IF(U70>U73,U73/U70,1) -> 1 | V77: =IF(V70>V73,V73/V70,1) -> 1 | W77: 1 | Y77: < Factors | AD77: Markets > | AE77: =AI75-AG77 -> 1.209699209e-09 | AF77: 2 | AG77: =-SUM(AH77:AJ77) -> -1.209699209e-09 | AH77: =-AI76 -> 1.209699209e-09 | AI77: 0 | AK77: 2
T78: 0 | U78: 1 | V78: 2 | W78: L | AE78: =AJ75-AG78 -> 0 | AF78: L | AG78: =-SUM(AH78:AJ78) -> 0 | AK78: L
AM79: Monetary
S80: X | Y80: imports ( - ) | AM80: < Transactions
E81: 0 | G81: 0 | I81: =I25+DT*(T81-I$9*I25*3) -> 0 | J81: =J25+DT*(U81-J$9*J25*3) -> 0 | K81: =K25+DT*(V81-K$9*K25*3) -> 0 | L81: =L25+DT*(W81-L$9*L25*3) -> 0 | R81: =AE73+AE81 -> 0 | T81: 0 | U81: 0 | V81: 0 | W81: 0 | Y81: < eXports ( + ) | AE81: =AE83-AG81 -> 0 | AG81: =AG$49*T81 -> 0 | AH81: =AH$49*U81 -> 0 | AI81: =AI$49*V81 -> 0 | AJ81: =AJ$49*W81 -> 0
H82: A | I82: 0 | J82: 1 | K82: 2 | L82: L | R82: r | S82: R | T82: 0 | U82: 1 | V82: 2 | W82: L | AE82: - NCF | AF82: PR | AG82: 0 | AH82: 1 | AI82: 2 | AJ82: L
D83: 0 | E83: 0 | F83: 0 | G83: 0 | H83: 0 | I83: =I27+DT*(T83-I$9*I27*3) -> 34862.94204 | J83: -335.1940973 | K83: -804.5144091 | L83: -2922 | M83: 0 | Q83: Debt | R83: =AE75+AE83 -> 0 | S83: 0 | T83: =-T81-SUM(T84:T86) -> 104588.8261 | U83: =-U45 -> -100.5582292 | V83: =-V45 -> -804.5144091 | W83: =-W45 -> -8766 | X83: 0 | Y83: < Output ( - ) | AD83: Cost of Sales | AE83: =AG83-AG83 -> 0 | AF83: 0 | AG83: =-AG81-SUM(AG84:AG86) -> 366715.0784 | AH83: =-AH81-SUM(AH84:AH86) -> -92941.09523 | AI83: =-AI81-SUM(AI84:AI86) -> -90223.85131 | AJ83: =-AJ81-SUM(AJ84:AJ86) -> -183550.1318 | AK83: 0
D84: 1 | E84: =E28+DT*(R84-Iota*E28) -> 81822.70456 | F84: 1 | H84: 1 | I84: -13142.87491 | J84: 164.8059027 | K84: 170.603954 | L84: 312.8824294 | M84: 1 | Q84: Service > | R84: =AE76+AE84 -> -8457.534509 | S84: 1 | T84: =T$77*T65 -> -39428.62474 | U84: 49.44177081 | V84: 170.603954 | W84: 938.6472882 | X84: 1 | AD84: Minus Sales > | AE84: =AH83-AG84 -> -8457.534509 | AF84: 1 | AG84: =-SUM(AH84:AJ84) -> -84483.56072 | AH84: =AH$49*U84 -> 45696.63136 | AI84: 19132.71609 | AJ84: 19654.21327 | AK84: 1
D85: 2 | E85: =E29+DT*(R85-Iota*E29) -> 84183.184 | F85: 2 | H85: 2 | I85: -12682.20407 | J85: 103.646619 | K85: 280.8881467 | L85: 338.8102449 | M85: 2 | R85: =AE77+AE85 -> -8701.523466 | S85: 2 | T85: -38046.6122 | U85: 31.09398571 | V85: 280.8881467 | W85: 1016.430735 | X85: 2 | Y85: < Rates of | AE85: =AI83-AG85 -> -8701.523466 | AF85: 2 | AG85: =-SUM(AH85:AJ85) -> -81522.32784 | AH85: 28738.66326 | AI85: 31500.75386 | AJ85: 21282.91072 | AK85: 2
D86: L | F86: L | G86: =G30+DT*(R86-Nu*G22+G54-3*G30/Term) -> -41895.33636 | H86: L | I86: -9037.863058 | J86: 66.74157555 | K86: 353.0223084 | L86: 2270.307326 | M86: L | Q86: Passive > | R86: =AE78+AE86 -> 17159.05797 | S86: L | T86: -27113.58917 | U86: 20.02247266 | V86: 353.0223084 | W86: 6810.921977 | X86: L | Y86: Change | AD86: Consumption > | AE86: =AJ83-AG86 -> 17159.05797 | AF86: L | AG86: =-SUM(AH86:AJ86) -> -200709.1898 | AH86: 18505.80061 | AI86: 39590.38136 | AJ86: 142613.0079 | AK86: L
Q87: Income | AD87: Minus Wages | AG87: s
I89: =I33+DT*I$9*3*(I25-I33) -> 0 | J89: =J33+DT*J$9*3*(J25-J33) -> 0 | K89: =K33+DT*K$9*3*(K25-K33) -> 0 | L89: =L33+DT*L$9*3*(L25-L33) -> 0 | R89: =GPE!C8 -> 0 | T89: =GPE!E8 -> 0 | U89: =GPE!F8 -> 0 | V89: =GPE!G8 -> 0 | W89: =GPE!H8 -> 0
H90: B | I90: 0 | J90: 1 | K90: 2 | L90: L | R90: =GPE!C9 -> r | S90: =GPE!D9 -> R | T90: =GPE!E9 -> 0 | U90: =GPE!F9 -> 1 | V90: =GPE!G9 -> 2 | W90: =GPE!H9 -> L
F91: 0 | G91: =G35+DT*3*(G27-G35)/Term -> 0 | H91: 0 | I91: =I35+DT*I$9*3*(I27-I35) -> 34862.94204 | J91: -335.1940973 | K91: -804.5144091 | L91: -2922 | M91: 0 | R91: =GPE!C10 -> 0 | S91: =GPE!D10 -> 0 | T91: =GPE!E10 -> 104588.8261 | U91: =GPE!F10 -> -100 | V91: =GPE!G10 -> -750 | W91: =GPE!H10 -> -8766
F92: 1 | H92: 1 | I92: -13142.87491 | J92: 164.8059027 | K92: 170.603954 | L92: 312.8824294 | M92: 1 | R92: =GPE!C11 -> -8035.153798 | S92: =GPE!D11 -> 1 | T92: =GPE!E11 -> -40175.76899 | U92: =GPE!F11 -> 50 | V92: =GPE!G11 -> 150 | W92: =GPE!H11 -> 1000
C93: System State | F93: 2 | H93: 2 | I93: -12682.20407 | J93: 103.646619 | K93: 280.8881467 | L93: 338.8102449 | M93: 2 | R93: =GPE!C12 -> -7344.632768 | S93: =GPE!D12 -> 2 | T93: =GPE!E12 -> -36723.16384 | U93: =GPE!F12 -> 30 | V93: =GPE!G12 -> 250 | W93: =GPE!H12 -> 1000
C94: at time = t + D > | F94: L | G94: =G38+DT*3*(G30-G38)/Term -> -41895.33636 | H94: L | I94: -9037.863058 | J94: 66.74157555 | K94: 353.0223084 | L94: 2270.307326 | M94: L | R94: =GPE!C13 -> 15379.78657 | S94: =GPE!D13 -> L | T94: =GPE!E13 -> -27689.89328 | U94: =GPE!F13 -> 20 | V94: =GPE!G13 -> 350 | W94: =GPE!H13 -> 6766
I97: =I41+DT*I$9*3*(I33-I41) -> 0 | J97: =J41+DT*J$9*3*(J33-J41) -> 0 | K97: =K41+DT*K$9*3*(K33-K41) -> 0 | L97: =L41+DT*L$9*3*(L33-L41) -> 0 | R97: u
H98: C | I98: 0 | J98: 1 | K98: 2 | L98: L | R98: (h/w-1)
F99: 0 | G99: =G43+DT*3*(G35-G43)/Term -> 0 | H99: 0 | I99: =I43+DT*I$9*3*(I35-I43) -> 34862.94204 | J99: -335.1940973 | K99: -804.5144091 | L99: -2922 | M99: 0 | S99: 0
F100: 1 | H100: 1 | I100: -13142.87491 | J100: 164.8059027 | K100: 170.603954 | L100: 312.8824294 | M100: 1 | R100: =AE56/(R7/R28-1) -> -8457.534509 | S100: 1
F101: 2 | H101: 2 | I101: -12682.20407 | J101: 103.646619 | K101: 280.8881467 | L101: 338.8102449 | M101: 2 | R101: =AE57/(R8/R29-1) -> -8701.523466 | S101: 2
F102: L | G102: =G46+DT*3*(G38-G46)/Term -> -41895.33636 | H102: L | I102: -9037.863058 | J102: 66.74157555 | K102: 353.0223084 | L102: 2270.307326 | M102: L | R102: =AE58/(R9/R30-1) -> 17159.05797 | S102: L
L105: =L49+DT*R105 -> -10261.52436 | R105: =(R102-R22)/AJ49/(1-Y30)*L9 -> 6.832087389e-11 | S105: < | T105: ∂ZL/∂t
L106: ZL

Sheet Series
B4: BUFFER ->
C5: =TicToc -> 300.0014954 | D5: ='1 DT'!Y21 -> 804.5144091 | E5: ='1 DT'!V73 -> 804.5144091 | F5: ='1 DT'!V70 -> 804.5144091 | G5: =-Iota -> 0.1033641525 | H5: ='1 DT'!R49 -> 0.4667017394 | I5: ='1 DT'!AI49 -> 112.1469675 | J5: ='1 DT'!AI43 -> 112.1469675 | K5: ='1 DT'!AI44 -> 112.1469675 | L5: ='1 DT'!AI46 -> 112.1469675 | M5: ='1 DT'!AI48 -> 107.7212806 | N5: =-Utility!H31 -> 10219.74286 | O5: =-Ull -> 10261.52436 | P5: =Utility!H15 -> 6766 | Q5: =-'1 DT'!Y22 -> 6810.921977 | R5: ='1 DT'!AE76 -> -1.209699209e-09 | S5: ='1 DT'!AE77 -> 1.209699209e-09
A7: BOX: | C7: year | D7: Y2 | E7: S2 | F7: D2 | G7: -i | H7: G/$ | I7: P2 | J7: MC2 | K7: VMP1 | L7: VMPL | M7: P* | N7: -ZL | O7: -ZL1 | P7: -YL | Q7: -YL1 | R7: Sector 1 | S7: Sector 2
A8: 0 | C8: 0 | D8: 761.25 | E8: 761.25 | F8: 830.4728259 | G8: 0.1073484214 | H8: 0.4657730347 | I8: 115.5218942 | J8: 113.9281717 | K8: 115.6370942 | L8: 115.6370942 | M8: 107.7212806 | N8: 10219.74286 | O8: 10219.74286 | P8: 6766 | Q8: 6766 | R8: -66.3627956 | S8: 66.3627956
A9: =1+A8 -> 1 | C9: 10.00013351 | D9: 804.0518421 | E9: 804.0518421 | F9: 805.6243069 | G9: 0.1033094916 | H9: 0.4697558825 | I9: 111.4904628 | J9: 111.8511433 | K9: 111.174296 | L9: 111.5181374 | M9: 107.7212806 | N9: 10219.74286 | O9: 10262.29855 | P9: 6766 | Q9: 6809.757665 | R9: 105.9419866 | S9: -105.9419866
A10: 2 | C10: 20.0003624 | D10: 804.4436483 | E10: 804.4436483 | F10: 804.7622492 | G10: 0.1033594721 | H10: 0.4672444255 | I10: 112.0319691 | J10: 112.0081746 | K10: 112.0509623 | L10: 112.0411978 | M10: 107.7212806 | N10: 10219.74286 | O10: 10261.61411 | P10: 6766 | Q10: 6810.600908 | R10: -6.485395132 | S10: 6.485395132
A11: 3 | C11: 30.00059128 | D11: 804.4995367 | E11: 804.4995367 | F11: 804.5661127 | G11: 0.1033633098 | H11: 0.4668151131 | I11: 112.1227662 | J11: 112.1116989 | K11: 112.1320061 | L11: 112.1231595 | M11: 107.7212806 | N11: 10219.74286 | O11: 10261.56148 | P11: 6766 | Q11: 6810.861572 | R11: -3.099019169 | S11: 3.099019169
A12: 4 | C12: 39.99929428 | D12: 804.5110621 | E12: 804.5110621 | F12: 804.5253691 | G12: 0.1033639274 | H12: 0.4667262883 | I12: 112.1417206 | J12: 112.139736 | K12: 112.1433689 | L12: 112.1417759 | M12: 107.7212806 | N12: 10219.74286 | O12: 10261.53265 | P12: 6766 | Q12: 6810.909473 | R12: -0.5518790415 | S12: 0.5518790415 | W12: b2 | X12: Z2 | Y12: b1-2-L | Z12: U1-2-L
A13: 5 | C13: 49.99761581 | D13: 804.5136982 | E13: 804.5136982 | F13: 804.5167239 | G13: 0.1033641028 | H13: 0.4667069269 | I13: 112.1458597 | J13: 112.1454807 | K13: 112.1461732 | L13: 112.1458807 | M13: 107.7212806 | N13: 10219.74286 | O13: 10261.526 | P13: 6766 | Q13: 6810.919296 | R13: -0.1050492281 | S13: 0.1050492281 | W13: ='1 DT'!AI35 -> 557862.9633 | X13: ='1 DT'!AL8 -> 5778.906278 | Y13: ='1 DT'!AI36+'1 DT'!AI37+'1 DT'!AI38 -> 1271292.107 | Z13: ='1 DT'!AI7+'1 DT'!AI8+'1 DT'!AI9 -> 10531.43283
A14: 6 | C14: 59.99593735 | D14: 804.5142607 | E14: 804.5142607 | F14: 804.5148959 | G14: 0.1033641422 | H14: 0.4667028271 | I14: 112.1467353 | J14: 112.1466543 | K14: 112.1468023 | L14: 112.1467401 | M14: 107.7212806 | N14: 10219.74286 | O14: 10261.5247 | P14: 6766 | Q14: 6810.921411 | R14: -0.02247255974 | S14: 0.02247255974 | W14: INITIAL | X14: INITIAL
A15: 7 | C15: 69.99654388 | D15: 804.514378 | E15: 804.514378 | F15: 804.5145115 | G15: 0.1033641503 | H15: 0.466701968 | I15: 112.1469187 | J15: 112.1469014 | K15: 112.146933 | L15: 112.1469197 | M15: 107.7212806 | N15: 10219.74286 | O15: 10261.52443 | P15: 6766 | Q15: 6810.921858 | R15: -0.004802499971 | S15: 0.004802499971 | V15: Q1 | W15: s | X15: d | Y15: S | Z15: D
A16: 8 | C16: 79.99868011 | D16: 804.5144026 | E16: 804.5144026 | F16: 804.5144307 | G16: 0.103364152 | H16: 0.4667017875 | I16: 112.1469572 | J16: 112.1469536 | K16: 112.1469603 | L16: 112.1469574 | M16: 107.7212806 | N16: 10219.74286 | O16: 10261.52437 | P16: 6766 | Q16: 6810.921952 | R16: -0.00101007157 | S16: 0.00101007157 | V16: 700 | W16: 106.6426664 | X16: 108.2008333 | Y16: =$W$13/($X$13-V16) -> 109.8391923 | Z16: =$Y$13/($Z$13+V16) -> 113.1905542
A17: 9 | C17: 90.00081635 | D17: 804.5144078 | E17: 804.5144078 | F17: 804.5144137 | G17: 0.1033641524 | H17: 0.4667017495 | I17: 112.1469654 | J17: 112.1469646 | K17: 112.146966 | L17: 112.1469654 | M17: 107.7212806 | N17: 10219.74286 | O17: 10261.52436 | P17: 6766 | Q17: 6810.921972 | R17: -0.000212077297 | S17: 0.000212077297 | V17: =10+V16 -> 710 | W17: 106.8566577 | X17: 108.1045815 | Y17: 110.0558844 | Z17: 113.0898637
A18: 10 | C18: 100.0029526 | D18: 804.5144089 | E18: 804.5144089 | F18: 804.5144101 | G18: 0.1033641524 | H18: 0.4667017415 | I18: 112.1469671 | J18: 112.1469669 | K18: 112.1469672 | L18: 112.1469671 | M18: 107.7212806 | N18: 10219.74286 | O18: 10261.52436 | P18: 6766 | Q18: 6810.921976 | R18: -4.461186442e-05 | S18: 4.461186442e-05 | V18: =10+V17 -> 720 | W18: 107.0715096 | X18: 108.0085008 | Y18: 110.2734332 | Z18: 112.9893522
A19: 11 | C19: 110.0050888 | D19: 804.5144091 | E19: 804.5144091 | F19: 804.5144093 | G19: 0.1033641525 | H19: 0.4667017398 | I19: 112.1469674 | J19: 112.1469674 | K19: 112.1469674 | L19: 112.1469674 | M19: 107.7212806 | N19: 10219.74286 | O19: 10261.52436 | P19: 6766 | Q19: 6810.921977 | R19: -9.388067872e-06 | S19: 9.388067872e-06 | V19: 730 | W19: 107.2872272 | X19: 107.9125907 | Y19: 110.4918437 | Z19: 112.8890192
A20: 12 | C20: 120.007225 | D20: 804.5144091 | E20: 804.5144091 | F20: 804.5144092 | G20: 0.1033641525 | H20: 0.4667017395 | I20: 112.1469675 | J20: 112.1469675 | K20: 112.1469675 | L20: 112.1469675 | M20: 107.7212806 | N20: 10219.74286 | O20: 10261.52436 | P20: 6766 | Q20: 6810.921977 | R20: -1.975836961e-06 | S20: 1.975836961e-06 | V20: 740 | W20: 107.5038158 | X20: 107.8168508 | Y20: 110.7111211 | Z20: 112.7888642
A21: 13 | C21: 130.0078278 | D21: 804.5144091 | E21: 804.5144091 | F21: 804.5144092 | G21: 0.1033641525 | H21: 0.4667017394 | I21: 112.1469675 | J21: 112.1469675 | K21: 112.1469675 | L21: 112.1469675 | M21: 107.7212806 | N21: 10219.74286 | O21: 10261.52436 | P21: 6766 | Q21: 6810.921977 | R21: -4.156983691e-07 | S21: 4.156983691e-07 | V21: 750 | W21: 107.7212806 | X21: 107.7212806 | Y21: 110.9312706 | Z21: 112.6888868
A22: 14 | C22: 140.0023346 | D22: 804.5144091 | E22: 804.5144091 | F22: 804.5144092 | G22: 0.1033641525 | H22: 0.4667017394 | I22: 112.1469675 | J22: 112.1469675 | K22: 112.1469675 | L22: 112.1469675 | M22: 107.7212806 | N22: 10219.74286 | O22: 10261.52436 | P22: 6766 | Q22: 6810.921977 | R22: -8.754412197e-08 | S22: 8.754412197e-08 | V22: 760 | W22: 107.939627 | X22: 107.6258797 | Y22: 111.1522974 | Z22: 112.5890864
A23: 15 | C23: 149.9968414 | D23: 804.5144091 | E23: 804.5144091 | F23: 804.5144091 | G23: 0.1033641525 | H23: 0.4667017394 | I23: 112.1469675 | J23: 112.1469675 | K23: 112.1469675 | L23: 112.1469675 | M23: 107.7212806 | N23: 10219.74286 | O23: 10261.52436 | P23: 6766 | Q23: 6810.921977 | R23: -1.864651316e-08 | S23: 1.864651316e-08 | V23: 770 | W23: 108.1588604 | X23: 107.5306476 | Y23: 111.3742067 | Z23: 112.4894627
A24: 16 | C24: 159.9913483 | D24: 804.5144091 | E24: 804.5144091 | F24: 804.5144091 | G24: 0.1033641525 | H24: 0.4667017394 | I24: 112.1469675 | J24: 112.1469675 | K24: 112.1469675 | L24: 112.1469675 | M24: 107.7212806 | N24: 10219.74286 | O24: 10261.52436 | P24: 6766 | Q24: 6810.921977 | R24: -4.082496701e-09 | S24: 4.082496701e-09 | V24: 780 | W24: 108.3789861 | X24: 107.435584 | Y24: 111.5970039 | Z24: 112.3900151
A25: 17 | C25: 169.9858551 | D25: 804.5144091 | E25: 804.5144091 | F25: 804.5144091 | G25: 0.1033641525 | H25: 0.4667017394 | I25: 112.1469675 | J25: 112.1469675 | K25: 112.1469675 | L25: 112.1469675 | M25: 107.7212806 | N25: 10219.74286 | O25: 10261.52436 | P25: 6766 | Q25: 6810.921977 | R25: -1.139212798e-09 | S25: 1.139212798e-09 | V25: 790 | W25: 108.6000097 | X25: 107.3406882 | Y25: 111.8206942 | Z25: 112.2907432
A26: 18 | C26: 179.9803619 | D26: 804.5144091 | E26: 804.5144091 | F26: 804.5144091 | G26: 0.1033641525 | H26: 0.4667017394 | I26: 112.1469675 | J26: 112.1469675 | K26: 112.1469675 | L26: 112.1469675 | M26: 107.7212806 | N26: 10219.74286 | O26: 10261.52436 | P26: 6766 | Q26: 6810.921977 | R26: -1.213509285e-09 | S26: 1.213509285e-09 | V26: 800 | W26: 108.8219366 | X26: 107.24596 | Y26: 112.0452831 | Z26: 112.1916465
A27: 19 | C27: 189.9748688 | D27: 804.5144091 | E27: 804.5144091 | F27: 804.5144091 | G27: 0.1033641525 | H27: 0.4667017394 | I27: 112.1469675 | J27: 112.1469675 | K27: 112.1469675 | L27: 112.1469675 | M27: 107.7212806 | N27: 10219.74286 | O27: 10261.52436 | P27: 6766 | Q27: 6810.921977 | R27: -1.205889133e-09 | S27: 1.205889133e-09 | V27: 810 | W27: 109.0447723 | X27: 107.1513987 | Y27: 112.2707759 | Z27: 112.0927246
A28: 20 | C28: 199.9693756 | D28: 804.5144091 | E28: 804.5144091 | F28: 804.5144091 | G28: 0.1033641525 | H28: 0.4667017394 | I28: 112.1469675 | J28: 112.1469675 | K28: 112.1469675 | L28: 112.1469675 | M28: 107.7212806 | N28: 10219.74286 | O28: 10261.52436 | P28: 6766 | Q28: 6810.921977 | R28: -1.217319361e-09 | S28: 1.217319361e-09 | V28: 820 | W28: 109.2685226 | X28: 107.0570041 | Y28: 112.4971782 | Z28: 111.993977
A29: 21 | C29: 209.9638824 | D29: 804.5144091 | E29: 804.5144091 | F29: 804.5144091 | G29: 0.1033641525 | H29: 0.4667017394 | I29: 112.1469675 | J29: 112.1469675 | K29: 112.1469675 | L29: 112.1469675 | M29: 107.7212806 | N29: 10219.74286 | O29: 10261.52436 | P29: 6766 | Q29: 6810.921977 | R29: -1.236369743e-09 | S29: 1.236369743e-09 | V29: 830 | W29: 109.493193 | X29: 106.9627757 | Y29: 112.7244955 | Z29: 111.8954031
A30: 22 | C30: 219.9583893 | D30: 804.5144091 | E30: 804.5144091 | F30: 804.5144091 | G30: 0.1033641525 | H30: 0.4667017394 | I30: 112.1469675 | J30: 112.1469675 | K30: 112.1469675 | L30: 112.1469675 | M30: 107.7212806 | N30: 10219.74286 | O30: 10261.52436 | P30: 6766 | Q30: 6810.921977 | R30: -1.224939514e-09 | S30: 1.224939514e-09 | V30: 840 | W30: 109.7187892 | X30: 106.868713 | Y30: 112.9527332 | Z30: 111.7970027
A31: 23 | C31: 229.9528961 | D31: 804.5144091 | E31: 804.5144091 | F31: 804.5144091 | G31: 0.1033641525 | H31: 0.4667017394 | I31: 112.1469675 | J31: 112.1469675 | K31: 112.1469675 | L31: 112.1469675 | M31: 107.7212806 | N31: 10219.74286 | O31: 10261.52436 | P31: 6766 | Q31: 6810.921977 | R31: -1.245894933e-09 | S31: 1.245894933e-09 | V31: 850 | W31: 109.9453169 | X31: 106.7748156 | Y31: 113.1818971 | Z31: 111.6987752
A32: 24 | C32: 239.947403 | D32: 804.5144091 | E32: 804.5144091 | F32: 804.5144091 | G32: 0.1033641525 | H32: 0.4667017394 | I32: 112.1469675 | J32: 112.1469675 | K32: 112.1469675 | L32: 112.1469675 | M32: 107.7212806 | N32: 10219.74286 | O32: 10261.52436 | P32: 6766 | Q32: 6810.921977 | R32: -1.202079056e-09 | S32: 1.202079056e-09 | V32: 860 | W32: 110.1727819 | X32: 106.681083 | Y32: 113.4119928 | Z32: 111.6007201
A33: 25 | C33: 249.9419098 | D33: 804.5144091 | E33: 804.5144091 | F33: 804.5144091 | G33: 0.1033641525 | H33: 0.4667017394 | I33: 112.1469675 | J33: 112.1469675 | K33: 112.1469675 | L33: 112.1469675 | M33: 107.7212806 | N33: 10219.74286 | O33: 10261.52436 | P33: 6766 | Q33: 6810.921977 | R33: -1.194458904e-09 | S33: 1.194458904e-09 | V33: 870 | W33: 110.4011901 | X33: 106.5875149 | Y33: 113.6430259 | Z33: 111.502837
A34: 26 | C34: 259.9424133 | D34: 804.5144091 | E34: 804.5144091 | F34: 804.5144091 | G34: 0.1033641525 | H34: 0.4667017394 | I34: 112.1469675 | J34: 112.1469675 | K34: 112.1469675 | L34: 112.1469675 | M34: 107.7212806 | N34: 10219.74286 | O34: 10261.52436 | P34: 6766 | Q34: 6810.921977 | R34: -1.202079056e-09 | S34: 1.202079056e-09 | V34: 880 | W34: 110.6305474 | X34: 106.4941107 | Y34: 113.8750022 | Z34: 111.4051255
A35: 27 | C35: 269.952179 | D35: 804.5144091 | E35: 804.5144091 | F35: 804.5144091 | G35: 0.1033641525 | H35: 0.4667017394 | I35: 112.1469675 | J35: 112.1469675 | K35: 112.1469675 | L35: 112.1469675 | M35: 107.7212806 | N35: 10219.74286 | O35: 10261.52436 | P35: 6766 | Q35: 6810.921977 | R35: -1.194458904e-09 | S35: 1.194458904e-09 | V35: 890 | W35: 110.8608596 | X35: 106.4008702 | Y35: 114.1079275 | Z35: 111.3075851
A36: 28 | C36: 279.9619446 | D36: 804.5144091 | E36: 804.5144091 | F36: 804.5144091 | G36: 0.1033641525 | H36: 0.4667017394 | I36: 112.1469675 | J36: 112.1469675 | K36: 112.1469675 | L36: 112.1469675 | M36: 107.7212806 | N36: 10219.74286 | O36: 10261.52436 | P36: 6766 | Q36: 6810.921977 | R36: -1.165883332e-09 | S36: 1.165883332e-09 | V36: 900 | W36: 111.0921327 | X36: 106.3077927 | Y36: 114.3418077 | Z36: 111.2102154
A37: 29 | C37: 289.9717102 | D37: 804.5144091 | E37: 804.5144091 | F37: 804.5144091 | G37: 0.1033641525 | H37: 0.4667017394 | I37: 112.1469675 | J37: 112.1469675 | K37: 112.1469675 | L37: 112.1469675 | M37: 107.7212806 | N37: 10219.74286 | O37: 10261.52436 | P37: 6766 | Q37: 6810.921977 | R37: -1.209699209e-09 | S37: 1.209699209e-09
A38: 30 | C38: 299.9814758 | D38: 804.5144091 | E38: 804.5144091 | F38: 804.5144091 | G38: 0.1033641525 | H38: 0.4667017394 | I38: 112.1469675 | J38: 112.1469675 | K38: 112.1469675 | L38: 112.1469675 | M38: 107.7212806 | N38: 10219.74286 | O38: 10261.52436 | P38: 6766 | Q38: 6810.921977 | R38: -1.205889133e-09 | S38: 1.205889133e-09
C39: 300.0014954 | D39: 804.5144091 | E39: 804.5144091 | F39: 804.5144091 | G39: 0.1033641525 | H39: 0.4667017394 | I39: 112.1469675 | J39: 112.1469675 | K39: 112.1469675 | L39: 112.1469675 | M39: 107.7212806 | N39: 10219.74286 | O39: 10261.52436 | P39: 6766 | Q39: 6810.921977 | R39: -1.209699209e-09 | S39: 1.209699209e-09

Sheet GPE
F3: General Equilibrium Prices, $/physical unit
K5: Experimenters are invited to change
K6: any data set in red type that
K7: appears within the marquee.
C8: =E8-C10 -> 0 | E8: 0 | F8: 0 | G8: 0 | H8: 0
C9: r | D9: R | E9: 0 | F9: 1 | G9: 2 | H9: L
C10: =E10-E10 -> 0 | D10: 0 | E10: =E26/E$18 -> 104588.8261 | F10: =-F8-SUM(F11:F13) -> -100 | G10: =-G8-SUM(G11:G13) -> -750 | H10: =-H8-SUM(H11:H13) -> -8766
C11: =F26-E27 -> -8035.153798 | D11: 1 | E11: =E27/E$18 -> -40175.76899 | F11: 50 | G11: 150 | H11: 1000 | N11: =L18*F11+F10 -> -45 | O11: =L18*G11 -> 165 | Q11: =-L18*H11*H18 -> -22000
C12: =G26-E28 -> -7344.632768 | D12: 2 | E12: =E28/E$18 -> -36723.16384 | F12: 30 | G12: 250 | H12: 1000 | N12: =L18*F12 -> 33 | O12: =L18*G12+G10 -> -475 | Q12: =-L18*H12*H18 -> -22000
C13: =H26-E29 -> 15379.78657 | D13: L | E13: =E29/E$18 -> -27689.89328 | F13: 20 | G13: 350 | H13: 6766 | N13: =F13+L15*(F11+F12) -> 12 | O13: =G13+L15*(G11+G12) -> 310 | Q13: =H18*(-H10-H13-L15*(H11+H12)) -> 44000
L14: i
L15: =-C18 -> -0.1 | N15: =N11*N11+N12*N12+N13*N13 -> 3258 | O15: =N11*O11+N12*O12+N13*O13 -> -19380 | Q15: =N11*Q11+N12*Q12+N13*Q13 -> 792000
N16: =O15 -> -19380 | O16: =O11*O11+O12*O12+O13*O13 -> 348950 | Q16: =O11*Q11+O12*Q12+O13*Q13 -> 20460000
C17: - i | E17: 0 | F17: 1 | G17: 2 | H17: L | L17: 1 - i
C18: 0.1 | D18: P | E18: 2 | F18: =N18/Q18 -> 883.8669178 | G18: =O18/Q18 -> 107.7212806 | H18: 20 | L18: =1-L15 -> 1.1 | N18: =Q15*O16-Q16*O15 -> 672883200000 | O18: =N15*Q16-N16*Q15 -> 8.200764e+10 | Q18: =N15*O16-N16*O15 -> 761294700
C19: Interest Rate | H19: Wage
H20: $/hour
E24: =-SUM(F24:H24) -> 0 | F24: =F$18*F8 -> 0 | G24: =G$18*G8 -> 0 | H24: =H$18*H8 -> 0
D25: PR | E25: 0 | F25: 1 | G25: 2 | H25: L
D26: 0 | E26: =-SUM(F26:H26) -> 209177.6522 | F26: =-F24-SUM(F27:F29) -> -88386.69178 | G26: =-G24-SUM(G27:G29) -> -80790.96045 | H26: =-H24-SUM(H27:H29) -> -40000
B27: % return > | C27: =C11/E27 -> 0.1 | D27: 1 | E27: =-SUM(F27:H27) -> -80351.53798 | F27: =F$18*F11 -> 44193.34589 | G27: 16158.19209 | H27: 20000
B28: on asset | C28: =C12/E28 -> 0.1 | D28: 2 | E28: =-SUM(F28:H28) -> -73446.32768 | F28: 26516.00753 | G28: 26930.32015 | H28: 20000
B29: turnover | D29: L | E29: =-SUM(F29:H29) -> -55379.78657 | F29: =F$18*F13 -> 17677.33836 | G29: =G$18*G13 -> 37702.44821 | H29: 0

Sheet Utility
G3: Sectors' Production and Utility Tradeoffs, physical units/year
L5: Sector 1:
N7: p | O7: pq
L8: x > | M8: =-F12 -> 100 | N8: =F19 -> 883.8669178 | O8: =M8*N8 -> 88386.69178 | P8: =O8-O9-O10-O11 -> 8035.153798
L9: Q1 > | M9: =F13 -> 50 | N9: =F19 -> 883.8669178 | O9: =M9*N9 -> 44193.34589 | P9: =(O8)*(-O9)+(O8-O9)*(-O10-O11)+(-O10)*(-O11) -> -5180891290 | Q9: =P9/P8/3 -> -214926.0371 | R9: a
F10: =GPE!F8 -> 0 | G10: =GPE!G8 -> 0 | H10: =GPE!H8 -> 0 | L10: Q2 > | M10: =G13 -> 150 | N10: =G19 -> 107.7212806 | O10: =M10*N10 -> 16158.19209 | P10: =(O8-O9)*(-O10)*(-O11)+(-O10-O11)*(O8)*(-O9) -> 1.555193372e+14 | Q10: =P10/P8/3 -> 6451622506 | R10: b
D11: Q | E11: 0 | F11: 1 | G11: 2 | H11: L | L11: QL > | M11: =H13 -> 1000 | N11: =H19 -> 20 | O11: =M11*N11 -> 20000 | P11: =(O8)*(-O9)*(-O10)*(-O11) -> -1.262311459e+18 | Q11: =P11/P8/2 -> -7.854930292e+13 | R11: c
D12: 0 | E12: =GPE!E10 -> 104588.8261 | F12: =GPE!F10 -> -100 | G12: =GPE!G10 -> -750 | H12: =GPE!H10 -> -8766 | N12: ^ P
D13: 1 | F13: =GPE!F11 -> 50 | G13: =GPE!G11 -> 150 | H13: =GPE!H11 -> 1000 | O13: pu | P13: z
D14: 2 | F14: =GPE!F12 -> 30 | G14: =GPE!G12 -> 250 | H14: =GPE!H12 -> 1000 | L14: Z < | M14: =O14/N8 -> 794.2843664 | O14: =P$14+O8 -> 702041.6748 | P14: =-Q9+Q16+Q17 -> 613654.983 | Q14: =-Q9*Q9+Q10 -> -3.974157891e+10 | R14: B | S14: =Q14^3+Q15^2 -> 6.560854017e+28
D15: L | F15: =GPE!F13 -> 20 | G15: =GPE!G13 -> 350 | H15: =GPE!H13 -> 6766 | L15: U1 < | M15: =O15/N9 -> 644.2843664 | O15: =P$14-O9 -> 569461.6371 | Q15: =Q9^3-3*Q9*Q10/2+Q11 -> -7926738537434964 | R15: C | S15: =SQRT(ABS(S14)) -> 2.561416408e+14
L16: U2 < | M16: =O16/N10 -> 5546.692237 | O16: =P$14-O10 -> 597496.7909 | Q16: =IF(S16>0,S16^(1/3),-((-S16)^(1/3))) -> 201512.5339 | R16: S1 | S16: =(-Q15+S15) -> 8182880178270446
L17: UL < | M17: =O17/N11 -> 29682.74915 | O17: =P$14-O11 -> 593654.983 | Q17: =IF(S17>0,S17^(1/3),-((-S17)^(1/3))) -> 197216.4121 | R17: S2 | S17: =(-Q15-S15) -> 7670596896599482
E18: 0 | F18: 1 | G18: 2 | H18: L
D19: P | E19: =GPE!E18 -> 2 | F19: =GPE!F18 -> 883.8669178 | G19: =GPE!G18 -> 107.7212806 | H19: =GPE!H18 -> 20
L22: Sector 2:
N23: p | O23: pq
L24: x > | M24: =-G12 -> 750 | N24: =G19 -> 107.7212806 | O24: =M24*N24 -> 80790.96045 | P24: =O24-O25-O26-O27 -> 7344.632768
L25: Q1 > | M25: =F14 -> 30 | N25: =F19 -> 883.8669178 | O25: =M25*N25 -> 26516.00753 | P25: =(O24)*(-O25)+(O24-O25)*(-O26-O27)+(-O26)*(-O27) -> -4150788230 | Q25: =P25/P24/3 -> -188381.9273 | R25: a
L26: Q2 > | M26: =G14 -> 250 | N26: =G19 -> 107.7212806 | O26: =M26*N26 -> 26930.32015 | P26: =(O24-O25)*(-O26)*(-O27)+(-O26-O27)*(O24)*(-O25) -> 1.297694899e+14 | Q26: =P26/P24/3 -> 5889538388 | R26: b
C27: z | D27: U | E27: 0 | F27: 1 | G27: 2 | H27: L | L27: QL > | M27: =H14 -> 1000 | N27: =H19 -> 20 | O27: =M27*N27 -> 20000 | P27: =(O24)*(-O25)*(-O26)*(-O27) -> -1.153831568e+18 | Q27: =P27/P24/2 -> -7.854930292e+13 | R27: c
C28: 0 | D28: 0 | E28: =-E12+((O8-O14)+(O24-O30)-(O41-O45))/E19 -> -643139.1648 | F28: =M14 -> 794.2843664 | G28: =M30 -> 5693.503722 | H28: =-H12 -> 8766 | N28: ^ P
C29: =P14 -> 613654.983 | D29: 1 | F29: =M15 -> 644.2843664 | G29: =M16 -> 5546.692237 | H29: =M17 -> 29682.74915 | O29: pu | P29: z
C30: =P30 -> 532520.5516 | D30: 2 | F30: =M31 -> 572.4895161 | G30: =M32 -> 4693.503722 | H30: =M33 -> 25626.02758 | L30: Z < | M30: =O30/N24 -> 5693.503722 | O30: =$P$30+O24 -> 613311.5121 | P30: =-Q25+Q32+Q33 -> 532520.5516 | Q30: =-Q25*Q25+Q26 -> -2.959821216e+10 | R30: B | S30: =Q30^3+Q31^2 -> 7.604104008e+28
C31: =P45 -> 69074.85729 | D31: L | F31: =M46 -> 58.15074408 | G31: =M47 -> 291.2368745 | H31: =M45 -> -10219.74286 | L31: U1 < | M31: =O31/N25 -> 572.4895161 | O31: =$P$30-O25 -> 506004.5441 | Q31: =Q25^3-3*Q25*Q26/2+Q27 -> -5099576259480375 | R31: C | S31: =SQRT(ABS(S30)) -> 2.75755399e+14
L32: U2 < | M32: =O32/N26 -> 4693.503722 | O32: =$P$30-O26 -> 505590.2315 | Q32: =IF(S32>0,S32^(1/3),-((-S32)^(1/3))) -> 175173.5058 | R32: S1 | S32: =(-Q31+S31) -> 5375331658481722
L33: UL < | M33: =O33/N27 -> 25626.02758 | O33: =$P$30-O27 -> 512520.5516 | Q33: =IF(S33>0,S33^(1/3),-((-S33)^(1/3))) -> 168965.1184 | R33: S2 | S33: =(-Q31-S31) -> 4823820860479028
L38: Sector L:
M40: Leisure | N40: p | O40: pq
L41: x > | M41: =-H15 -> -6766 | N41: =-H19 -> -20 | O41: =M41*N41 -> 135320 | Q41: =O41-O42-O43 -> 79940.21343 | R41: a
L42: Q1 > | M42: =F15 -> 20 | N42: =F19 -> 883.8669178 | O42: =M42*N42 -> 17677.33836 | Q42: =-O41*O42-O41*O43+O42*O43 -> -6827513784 | R42: b
L43: Q2 > | M43: =G15 -> 350 | N43: =G19 -> 107.7212806 | O43: =M43*N43 -> 37702.44821 | Q43: =O41*O42*O43 -> 9.018792933e+13 | R43: c
N44: ^ P | O44: pu | P44: z
L45: Z < | M45: =O45/N41 -> -10219.74286 | O45: =P$45+O41 -> 204394.8573 | P45: =(-Q42+SQRT(Q42^2-4*Q41*Q43))/(2*Q41) -> 69074.85729
L46: U1 < | M46: =O46/N42 -> 58.15074408 | O46: =P$45-O42 -> 51397.51893
L47: U2 < | M47: =O47/N43 -> 291.2368745 | O47: =P$45-O43 -> 31372.40908

Sheet IState
H4: Commodities' Turnover Fractions, dimensionless/year
E8: NPV
E9: =(1-E13)^-G9 -> 0.5131581182 | G9: 7 | I9: < Investment Term, T yrs.
E12: i | G12: n
E13: =GPE!L15 -> -0.1 | G13: =(1-1/E9)/G9 -> -0.1355310143 | H13: V | I13: 1 | J13: 0.1 | K13: =1/3 -> 0.3333333333 | L13: =1 -> 1
I14: 0 | J14: 1 | K14: 2 | L14: L
I20: =GPE!E8 -> 0 | J20: =GPE!F8 -> 0 | K20: =GPE!G8 -> 0 | L20: =GPE!H8 -> 0
E21: e - | G21: e + | H21: E | I21: 0 | J21: 1 | K21: 2 | L21: L
D22: 0 | H22: 0 | I22: =GPE!E10 -> 104588.8261 | J22: =GPE!F10 -> -100 | K22: =GPE!G10 -> -750 | L22: =GPE!H10 -> -8766 | M22: 0
D23: 1 | E23: =GPE!C11 -> -8035.153798 | H23: 1 | I23: =GPE!E11 -> -40175.76899 | J23: =GPE!F11 -> 50 | K23: =GPE!G11 -> 150 | L23: =GPE!H11 -> 1000 | M23: 1
D24: 2 | E24: =GPE!C12 -> -7344.632768 | H24: 2 | I24: =GPE!E12 -> -36723.16384 | J24: =GPE!F12 -> 30 | K24: =GPE!G12 -> 250 | L24: =GPE!H12 -> 1000 | M24: 2
D25: L | G25: =GPE!C13 -> 15379.78657 | H25: L | I25: =GPE!E13 -> -27689.89328 | J25: =GPE!F13 -> 20 | K25: =GPE!G13 -> 350 | L25: =GPE!H13 -> 6766 | M25: L
E28: 0 | G28: 0 | I28: =I20/I$13/3 -> 0 | J28: =J20/J$13/3 -> 0 | K28: =K20/K$13/3 -> 0 | L28: =L20/L$13/3 -> 0
H29: A | I29: 0 | J29: 1 | K29: 2 | L29: L
D30: 0 | H30: 0 | I30: =I22/I$13/3 -> 34862.94204 | J30: -333.3333333 | K30: -750 | L30: -2922 | M30: 0
D31: 1 | E31: =E23/E13 -> 80351.53798 | H31: 1 | I31: -13391.923 | J31: 166.6666667 | K31: 150 | L31: 333.3333333 | M31: 1
D32: 2 | E32: =E24/E13 -> 73446.32768 | H32: 2 | I32: -12241.05461 | J32: 100 | K32: 250 | L32: 333.3333333 | M32: 2
D33: L | G33: =G25/G13/3 -> -37825.99539 | H33: L | I33: -9229.964428 | J33: 66.66666667 | K33: 350 | L33: 2255.333333 | M33: L
I36: =I28 -> 0 | J36: =J28 -> 0 | K36: =K28 -> 0 | L36: =L28 -> 0
H37: B | I37: 0 | J37: 1 | K37: 2 | L37: L
H38: 0 | I38: =I30 -> 34862.94204 | J38: =J30 -> -333.3333333 | K38: -750 | L38: -2922 | M38: 0
H39: 1 | I39: =I31 -> -13391.923 | J39: 166.6666667 | K39: 150 | L39: 333.3333333 | M39: 1
C40: System State | H40: 2 | I40: =I32 -> -12241.05461 | J40: 100 | K40: 250 | L40: 333.3333333 | M40: 2
C41: at time = 0 > | G41: =G33 -> -37825.99539 | H41: L | I41: =I33 -> -9229.964428 | J41: 66.66666667 | K41: 350 | L41: 2255.333333 | M41: L
I44: =I36 -> 0 | J44: =J36 -> 0 | K44: =K36 -> 0 | L44: =L36 -> 0
H45: C | I45: 0 | J45: 1 | K45: 2 | L45: L
H46: 0 | I46: =I38 -> 34862.94204 | J46: =J38 -> -333.3333333 | K46: -750 | L46: -2922 | M46: 0
H47: 1 | I47: =I39 -> -13391.923 | J47: 166.6666667 | K47: 150 | L47: 333.3333333 | M47: 1
H48: 2 | I48: =I40 -> -12241.05461 | J48: 100 | K48: 250 | L48: 333.3333333 | M48: 2
G49: =G41 -> -37825.99539 | H49: L | I49: =I41 -> -9229.964428 | J49: 66.66666667 | K49: 350 | L49: 2255.333333 | M49: L
L52: =Utility!M45/L13 -> -10219.74286

Sheet Module1 (hidden)

Sheet Module2 (hidden)
